Cogmind - Beta 13 *** ADVENTURER MODE // 2024.03.14 @ 21:47:19 Player: Prophet Result: Self-destructed Performance ------------- Evolutions (2) 1000 Regions Visited (4) 800 Robots Destroyed (47) 235 Value Destroyed (1090) 1090 Prototype IDs (5) 100 Alien Tech Used (0) 0 Bonus (0) 0 TOTAL SCORE: 3225 Bonus ------- None Cogmind --------- Core Integrity 500/550 Matter 300/300 Energy 315/315 System Corruption 0% Temperature Cool (82) Movement Walking (120) Location -8/Materials Parts ------- > --- POWER (1) -------- Neutrino Core > --- PROPULSION (4) --- Carbon-fiber Leg Carbon-fiber Leg Carbon-fiber Leg Myomer Leg > --- UTILITY (4) ------ Small Storage Unit Improved Terrain Scanner Armor Integrity Analyzer > --- WEAPON (2) ------- Makeshift Laser Beamcaster > --- INVENTORY (8) ---- Compact Matter Pod (150) Trap Scanner Subdweller Optics Improved Signal Interpreter ECM Suite Mining Laser Peak State ------------ > --- POWER ------------ Neutrino Core > --- PROPULSION ------- Carbon-fiber Leg Carbon-fiber Leg Carbon-fiber Leg Myomer Leg > --- UTILITY ---------- Small Storage Unit Improved Terrain Scanner Armor Integrity Analyzer Particle Charger > --- WEAPON ----------- Makeshift Laser Beamcaster > --- INVENTORY -------- Compact Matter Pod Trap Scanner Subdweller Optics ECM Suite Mining Laser [Rating: 43] Favorites ----------- Power Light Angular Momentum Engine Engine Light Angular Momentum Engine Power Core Neutrino Core Propulsion Carbon-fiber Leg Leg Carbon-fiber Leg Wheel Subdweller Monowheel Hover Unit Hover Unit Utility Small Storage Unit Device Improved Terrain Scanner Storage Small Storage Unit Processor Armor Integrity Analyzer Weapon Makeshift Laser Energy Gun Makeshift Laser Energy Cannon Beam Cannon Ballistic Gun Improved Assault Rifle Special Weapon Mining Laser Build | -11 -10 -10 -10 -8 ------- Run | Yrd Mat Min Sub Mat Slots Evolved 4 | . . . . 4 Power . | . . . . . Propulsion 2 | . . . . 2 Utility 2 | . . . . 2 Weapon . | . . . . . Parts Attached 41 | 7 8 3 17 6 Power 8 | 1 2 1 4 . Engine 7 | 1 2 1 3 . Core 1 | . . . 1 . Reactor . | . . . . . Propulsion 15 | 2 4 . 7 2 Treads . | . . . . . Leg 11 | 2 2 . 5 2 Wheel 2 | . . . 2 . Hover 2 | . 2 . . . Flight . | . . . . . Utility 9 | 2 . 1 2 4 Device 7 | 1 . 1 2 3 Storage 1 | 1 . . . . Processor 1 | . . . . 1 Hackware . | . . . . . Protection . | . . . . . Artifact . | . . . . . Weapon 9 | 2 2 1 4 . Energy Gun 5 | 2 . . 3 . Energy Cannon 1 | . . . 1 . Ballistic Gun 2 | . 2 . . . Ballistic Cannon . | . . . . . Launcher . | . . . . . Special Weapon 1 | . . 1 . . Impact Weapon . | . . . . . Slashing Weapon . | . . . . . Piercing Weapon . | . . . . . Special Melee Weapon . | . . . . . Unidentified Prototypes 1 | . 1 . . . Parts Lost 1 | . . . . 1 Power . | . . . . . Propulsion . | . . . . . Utility 1 | . . . . 1 Weapon . | . . . . . Highest Loss Streak 1 | . . . . 1 To Critical Strikes . | . . . . . Average Slot Usage (%) 99 | . 100 100 100 98 Engine 10 | . 14 14 11 . Core 2 | . . . 2 9 Leg 27 | . 28 28 24 35 Wheel 1 | . . . 3 . Device 14 | . 14 14 14 17 Storage 13 | . 14 14 14 9 Processor 1 | . . . . 8 Energy Gun 15 | . 1 . 24 18 Energy Cannon 1 | . . . 2 . Ballistic Gun 7 | . 26 20 . . Special Weapon 1 | . . 7 . . Naked Turns . | . . . . . Heaviest Build 30 | 15 17 15 27 30 Greatest Support 70 | 20 20 20 40 70 Greatest Overweight (x) 2 | 2 . . . . Average Overweight (x) . | . . . . . Largest Inventory Capacity 8 | 8 8 8 8 8 Average Capacity 7 | 7 8 8 8 8 Most Carried 8 | 2 8 8 8 6 Average Carried 6 | . 4 6 7 5 Final Capacity 8 | 8 8 8 8 8 Final Carried 8 | . 6 8 7 6 Class Distribution -------------------- 62% | Scavenger-Mutant 37% | Mutant Dominant Class ---------------- Mutant | -10/Materials Mutant | -10/Mines Scavenger-Mutant | -10/Subcaves Scavenger-Mutant | -8/Materials Resources | -11 -10 -10 -10 -8 ----------- Run | Yrd Mat Min Sub Mat Matter Collected 955 | 270 254 144 173 114 Remotely . | . . . . . Salvage Created 1891 | 196 373 391 93 838 Parts 107 | 11 35 14 10 37 Haulers Intercepted 1 | . 1 . . . Recyclers Shooed 1 | . . . . 1 Parts Field Recycled . | . . . . . Retrieved Matter . | . . . . . Parts Self-Destructed 14 | . . . 14 . Prevented . | . . . . . Kills | -11 -10 -10 -10 -8 ------- Run | Yrd Mat Min Sub Mat Combat Hostiles Destroyed 24 | . 8 3 3 10 Guns 22 | . 8 3 2 9 Cannons 1 | . . . 1 . Classes Destroyed 10 | 2 4 . 1 3 Worker 2 | . . . . 2 Tunneler 8 | 4 . 3 . 1 Hauler 1 | . 1 . . . Recycler 5 | 1 1 2 . 1 Watcher 7 | . 3 . . 4 Swarmer 6 | . 6 . . . Grunt 11 | . 2 3 . 6 Brawler 1 | . . . . 1 Sentry 3 | . . . . 3 Subdweller 3 | . . . 3 . Best Kill Streak 5 | 3 5 4 2 5 Combat Bots Only 5 | . 5 2 2 3 Max Kills in Single Turn 2 | 1 2 1 1 1 Gunslinging 1 | . 1 . . . Exploded . | . . . . . Melee . | . . . . . Uniques/NPCs Destroyed . | . . . . . Combat | -11 -10 -10 -10 -8 -------- Run | Yrd Mat Min Sub Mat Hostile Shots Fired 121 | . 37 20 28 36 Missed 47 | . 13 6 16 12 Damage Taken 914 | . 190 144 295 285 Core 206 | . 32 25 99 50 Absorbed by Shields . | . . . . . Ignored by Resistances 238 | . 58 44 54 82 Regen/Repaired (Parts) 12 | . . . . 12 Core Remaining (%) 68 | 100 . . 37 . Volleys Fired 128 | 11 29 23 17 48 Largest 2 | 2 2 2 2 2 Hottest 125 | 80 46 123 125 125 Shots Fired 242 | 22 58 43 31 88 Gun 228 | 22 58 39 21 88 Cannon 10 | . . . 10 . Launcher . | . . . . . Special 4 | . . 4 . . Kinetic 97 | . 58 39 . . Thermal 123 | . . 4 31 88 Explosive . | . . . . . Electromagnetic 22 | 22 . . . . Robot Hit Streak 19 | 5 19 14 14 18 Robot Miss Streak 3 | 1 2 1 3 2 Penetration Max . | . . . . . Secondary Targets 2 | . 2 . . . Max Gunslinging Chain 1 | . 1 . . . Shots Hit Robots 189 | 14 44 33 25 73 Core Hits 66 | 6 15 13 5 27 Critical Kills . | . . . . . Critical Parts Destroyed . | . . . . . Critical Strikes 15 | . . . 1 14 Burn 15 | . . . 1 14 Melee Attacks . | . . . . . Impact . | . . . . . Slashing . | . . . . . Piercing . | . . . . . Sneak Attacks . | . . . . . Combat Hostiles . | . . . . . Follow-up Attacks . | . . . . . Damage Inflicted 3462 | 189 696 489 441 1647 Guns 3374 | 189 696 489 353 1647 Cannons 88 | . . . 88 . Explosions . | . . . . . Melee . | . . . . . Ramming . | . . . . . Kinetic 1185 | . 696 489 . . Thermal 2088 | . . . 441 1647 Explosive . | . . . . . Electromagnetic 189 | 189 . . . . Impact . | . . . . . Slashing . | . . . . . Piercing . | . . . . . Highest Corruption . | . . . . . Average Corruption . | . . . . . Corruption Purged . | . . . . . Corruption Blocked . | . . . . . Overload Shots . | . . . . . Overflow Damage . | . . . . . Projectiles . | . . . . . Explosions . | . . . . . Melee . | . . . . . Knockbacks . | . . . . . Impact . | . . . . . Kinetic . | . . . . . Secondary . | . . . . . Self-Inflicted Damage . | . . . . . Shots . | . . . . . Rammed . | . . . . . Targets Rammed . | . . . . . Kicked . | . . . . . Crushed . | . . . . . Highest Temperature 396 | 54 4 44 48 396 Average Temperature 103 | 23 2 15 14 139 Received Heat Transfer 477 | . 84 123 81 189 Effects 5 | . . . . 5 Shutdowns 1 | . . . . 1 Energy Bleed 3 | . . . . 3 Matter Decay 1 | . . . . 1 Siege Activations . | . . . . . Robots Corrupted . | . . . . . Combat Hostiles . | . . . . . Parts Fried 1 | 1 . . . . Impact Corruptions . | . . . . . Robots Melted 2 | . . . . 2 Combat Hostiles 1 | . . . . 1 Parts Melted 11 | . . . 1 10 Heat Transferred 4810 | . . . 962 3848 Parts Sabotaged . | . . . . . Parts Stolen . | . . . . . Parts Stripped . | . . . . . Power Chain Reactions . | . . . . . Alert | -11 -10 -10 -10 -8 ------- Run | Yrd Mat Min Sub Mat Peak Influence 287 | 25 227 140 . 287 Initial 35 | . 13 35 . . Average 98 | 8 113 62 . 146 Maximum Alert Level 1 | . 1 . . 1 Low Security (%) 87 | 100 71 100 . 83 Level 1 12 | . 28 . . 16 Level 2 . | . . . . . Level 3 . | . . . . . Level 4 . | . . . . . Level 5 . | . . . . . High Security . | . . . . . Max Security . | . . . . . Squads Dispatched 3 | . 1 . . 2 Investigation 3 | . 1 . . 2 Extermination . | . . . . . Reinforcement . | . . . . . Assault . | . . . . . Garrison . | . . . . . Intercept . | . . . . . Searches Triggered . | . . . . . Construction Impeded . | . . . . . Haulers Reinforced . | . . . . . Active Scanning Responses . | . . . . . Cargo Convoy Interrupts . | . . . . . Stealth | -11 -10 -10 -10 -8 --------- Run | Yrd Mat Min Sub Mat Distress Signals 1 | . . . . 1 Communications Jammed . | . . . . . Distress Signals . | . . . . . Times Spotted 83 | . 12 4 44 23 Peak Tracking Total 5 | . 5 2 5 4 Tactical Retreats 7 | . 1 . 4 2 Traps | -11 -10 -10 -10 -8 ------- Run | Yrd Mat Min Sub Mat Traps Triggered 3 | . 1 . 2 . Indirectly . | . . . . . Trap Hack Attempts . | . . . . . Triggered . | . . . . . Disarmed . | . . . . . Reprogrammed . | . . . . . Reused . | . . . . . Traps Extracted . | . . . . . Installed . | . . . . . Triggered . | . . . . . Machines | -11 -10 -10 -10 -8 ---------- Run | Yrd Mat Min Sub Mat Machines Disabled 2 | . . . 1 1 Max in Single Turn 1 | . . . 1 1 Machines Repaired . | . . . . . Machines Dismantled . | . . . . . Machines Sabotaged . | . . . . . Overloaded Fab Kills . | . . . . . Hacking | -11 -10 -10 -10 -8 --------- Run | Yrd Mat Min Sub Mat Machines Accessed 8 | . 3 1 1 3 Terminals 6 | . 3 1 . 2 Fabricators . | . . . . . Repair Stations 1 | . . . . 1 Recycling Units . | . . . . . Scanalyzers . | . . . . . Garrison Access . | . . . . . Total Hacks 26 | . 7 2 3 14 Successful 20 | . 6 1 3 10 Failed 6 | . 1 1 . 4 Catastrophic . | . . . . . Database Lockouts . | . . . . . Manual . | . . . . . Terminals 19 | . 7 2 . 10 Fabricators . | . . . . . Repair Stations 4 | . . . . 4 Recycling Units . | . . . . . Scanalyzers . | . . . . . Garrison Access . | . . . . . Terminal Hacks 17 | . 6 1 3 7 Record 6 | . . 1 3 2 Prototype ID Bank 2 | . 1 . . 1 Branch Access Points 1 | . 1 . . . Emergency Access Points 1 | . . . . 1 Recycling Unit Index 1 | . 1 . . . Locate Traps 1 | . 1 . . . Maintenance Status 1 | . 1 . . . Transport Status 1 | . . . . 1 Investigation Status 1 | . . . . 1 Zone Layout 2 | . 1 . . 1 Fabricator Hacks . | . . . . . Repair Station Hacks 3 | . . . . 3 Scan Component 2 | . . . . 2 Repair 1 | . . . . 1 Recycling Unit Hacks . | . . . . . Scanalyzer . | . . . . . Garrison Access Hacks . | . . . . . Unauthorized Hacks . | . . . . . Terminals . | . . . . . Fabricators . | . . . . . Repair Stations . | . . . . . Recycling Units . | . . . . . Scanalyzers . | . . . . . Garrison Access . | . . . . . Data Cores Recovered . | . . . . . Used . | . . . . . Hacking Detections 6 | . 3 . . 3 Full Trace Events 2 | . . . . 2 Feedback Events . | . . . . . Feedback Blocked . | . . . . . Robot Schematics Acquired . | . . . . . Robots Built . | . . . . . Authchips . | . . . . . Time . | . . . . . Total Robot Build Rating . | . . . . . Part Schematics Acquired . | . . . . . Parts Built . | . . . . . Authchips . | . . . . . Time . | . . . . . Total Part Build Rating . | . . . . . Parts Repaired 1 | . . . . 1 Time 38 | . . . . 38 Parts Recycled . | . . . . . Recycled Matter . | . . . . . Retrieved Matter . | . . . . . Retrieved Components . | . . . . . Parts Scanalyzed . | . . . . . Part Schematics Acquired . | . . . . . Parts Damaged . | . . . . . Bothacking | -11 -10 -10 -10 -8 ------------ Run | Yrd Mat Min Sub Mat Used RIF Installer . | . . . . . Robots Hacked . | . . . . . Non-combat . | . . . . . Combat . | . . . . . Robot Hacks Applied . | . . . . . Relay Couplers Released . | . . . . . Fabnet Peak Effective % . | . . . . . Robots Rewired . | . . . . . Allies Hacked . | . . . . . Hacks Repelled . | . . . . . Allies | -11 -10 -10 -10 -8 -------- Run | Yrd Mat Min Sub Mat Total Allies 1 | . . 1 . . Largest Group 1 | . . 1 . . Highest-Rated Group 31 | . . 31 . . Highest-Rated Ally 31 | . . 31 . . Total Orders . | . . . . . Ally Attacks . | . . . . . Total Damage . | . . . . . Kills . | . . . . . Allies Corrupted . | . . . . . Allies Melted . | . . . . . Intel | -11 -10 -10 -10 -8 ------- Run | Yrd Mat Min Sub Mat Robot Analysis Total . | . . . . . Derelict Logs Recovered 4 | . . 2 2 . Drone Launches . | . . . . . Drone Recoveries . | . . . . . Exploration | -11 -10 -10 -10 -8 ------------- Run | Yrd Mat Min Sub Mat Turns Passed 3981 | 119 538 739 1982 603 Spaces Moved 2738 | 67 340 519 1517 295 Core 21 | 21 . . . . Treads . | . . . . . Legs 2514 | 46 340 519 1314 295 Wheels 203 | . . . 203 . Hover . | . . . . . Flight . | . . . . . Fastest Speed 50 | 50 120 120 110 120 Average Speed 118 | 107 120 120 118 120 Slowest Speed 150 | 150 120 120 120 120 Overloaded Moves . | . . . . . Propulsion Burnouts . | . . . . . Robots Hopped . | . . . . . Cave-ins Triggered . | . . . . . Exploration Rate (%) 52 | 4 63 90 82 21 Regions Visited 4 Branch Regions 2 Pre-discovered Areas 2 | . . . 2 . Known Exits Taken 2 | . 1 1 . . Unknown Exits Taken 2 | 1 . . 1 . Scrap Searched 6 | . . 1 5 . Spaces Dug . | . . . . . Terrain Destroyed 2 | . . . . 2 Melee . | . . . . . Projectile 2 | . . . . 2 AOE . | . . . . . Terrain Rammed . | . . . . . Walls Destroyed . | . . . . . Machines Disabled . | . . . . . Actions | -11 -10 -10 -10 -8 --------- Run | Yrd Mat Min Sub Mat Total 3206 | 91 411 583 1666 455 Wait 231 | . 17 33 79 102 Move 2734 | 66 339 518 1516 295 Hop . | . . . . . Pick Up 44 | 7 12 4 17 4 Fast Attach . | . . . . . Attach 14 | 7 . . 2 5 Detach . | . . . . . Swap 27 | . 8 3 15 1 Drop 28 | . 6 2 20 . Fire 128 | 11 29 23 17 48 Melee . | . . . . . Ram . | . . . . . Kick . | . . . . . Crush . | . . . . . Escape Stasis . | . . . . . Rewire . | . . . . . Trap . | . . . . . Miscellaneous . | . . . . . Route ------- -11/Scrapyard -10/Materials (discovered 3 exits: [*Mat] / *Min x2) -10/Mines (discovered 2 exits: [*Mat] / *Sub) -10/Subcaves (discovered 2 exits: *Mat / *Rec) -8/Materials History --------- Turn | Location | Event 6 | -11/Scrapyard | Discovered new exit (range 14) 120 | -11/Scrapyard | Entered Materials 224 | -10/Materials | Identified exit to Mines 301 | -10/Materials | Build established: Mutant 456 | -10/Materials | Discovered new exit (range 14) 658 | -10/Materials | Entered Mines 695 | -10/Mines | Met a Derelict bent on vengeance 960 | -10/Mines | Received a Mining Laser from a helpful Derelict 1115 | -10/Mines | Discovered new exit (range 9) 1217 | -10/Mines | Identified exit to Subcaves 1397 | -10/Mines | Entered Subcaves 1398 | -10/Subcaves | Identified exit to Recycling 1488 | -10/Subcaves | Ambushed by swarm of Subdwellers 1490 | -10/Subcaves | Ambushed by Subdwellers from Twisted Machinery 1562 | -10/Subcaves | A swath of the cavern ceiling suddenly collapsed 1585 | -10/Subcaves | Visited Clippyterm 1588 | -10/Subcaves | Learned location of Extension (-6) 1588 | -10/Subcaves | Learned Factory fabricator intel 1767 | -10/Subcaves | Lost 3 allies 1828 | -10/Subcaves | Build established: Scavenger-Mutant 1899 | -10/Subcaves | Shifting Twisted Machinery released Sub. Laser 1903 | -10/Subcaves | Shifting Twisted Machinery released Sub. Monowheel 2457 | -10/Subcaves | Shifting Twisted Machinery released Sub. Monowheel 2474 | -10/Subcaves | Shifting Twisted Machinery released Riot Gun 2495 | -10/Subcaves | Shifting Twisted Machinery released Hvy. Battle Rifle 2509 | -10/Subcaves | Shifting Twisted Machinery released Spk. Treads 2636 | -10/Subcaves | Core integrity fell below 50% 2837 | -10/Subcaves | Discovered new exit (range 6) 2968 | -10/Subcaves | Learned location of Storage (-9) 3027 | -10/Subcaves | Disturbed a concealed Subdweller 3379 | -10/Subcaves | Entered Materials 3379 | -8/Materials | Evolved 4 slots: Propulsion x2, Utility x2 3634 | -8/Materials | Repaired Particle Charger 3982 | -8/Materials | Self-destructed Last Messages --------------- 03948_ G-47 Trooper critical meltdown. 03956_ K-01 Serf collects debris. 03966_ C-30 ARC bursts open, deploying its payload. 03966_ G-50 Soldier unfolds itself. 03966_ G-47 Trooper unfolds itself. 03967_ A-02 Transporter suffers critical hit (Burn). 03969_ K-01 Serf collects debris. 03971_ Particle Charger destroyed. 03972_ K-01 Serf collects debris. 03982_ Connecting with Repair Station... >>Scan(Carbon-fiber Leg) Scanning Carbon-fiber Leg... Ready to Repair: Carbon-fiber Leg Rating: 3 Time: 38 03982_ ALERT: Suspicious activity at Repair Station M002. Dispatching Investigation squad. Map ----- +----------------------------------------------------+ | ?????????????????????????????????????????????????? | | ?????????????????????????????????????????????????? | | ?????????????????????????????????????????????????? | | ?????????????????????????????????????????????????? | | ?????????????????????????????????????????????????? | | ?#????????????????? " ????#??????????????????????? | | ??????????????????# %"???????????????????????????? | | ??????????????????# " #??????????????????????????? | | ????????????????#?#= #??????????????????????????? | | ??????????????????#% #??? ??????????????????????? | | ??????????????????# #??????????????????????????? | | ?#????????????????# #??????????????????????????? | | ??????????????????# #????? ? ??????????????????? | | ????????#??????? ?+ +????????????#?????????????? | | ???????#?????? ? ?# #????????#????#????????????? | | ????????#?????????# #??????????????????????????? | | #??#??????????? ??#% #####+#### ?? ???????????? | | #?????????##?#????# % ? ?????????????? | | #?#????#???#??????# ????? ?????????????? | | #???##?#??????#??## ?????? ??? ????????????? | | #????##??####?#??## %#??#?????????#?? ??????????? | | #??????#???#??????#% ###################????????? | | ######???########## # # #?????????? | | == #???# # # """ =# #???#?????? | | == ##?## """ # # "R" # #?????????? | | == #???# """ # # "@" # #?????????? | | ##?## " " =#[ # # """ """ #?????????? | | ##### * % %+= + [ # """ """ #?????????? | | *[= ##?## =%"" %# # [] # """ """ #???#?????? | | #%####???# """ # # [] # ##????????? | | ########## """ # ############+######????????? | | =%! + # % ##???????? | | ################## ##???????? | | #?#???????#????# [%%! #????????? | | #???##????#?##?###########+###########????????? | | ##????#?#???#?##?#???# %= #??????#???#???? | | #?????????????????#??# [ ##???#???##????? | | ##????????#?#?##?????# = ##??????#??????? | | #????????#??#????##?## #??????????????? | | ###????????????#?#?#??#?###########???##????#????? | | | | | | | | | | | | | | | | | | | | | +----------------------------------------------------+ Best States ------------- Heat Dissipation 31 Energy Generation 19 Energy Capacity 315 Matter Stores 300 Matter Capacity 300 Sight Range 21 Terrain Scan Range 16 Terrain Scan Density 10 ECM Strength 1 Resistance: KI 20 Resistance: TH 20 Resistance: EX 20 Resistance: EM 20 Resistance: I 20 Resistance: S 20 Resistance: P 20 Evasion (%) 55 Armor Integrity Analysis 30 Particle Charging 15 Offensive Hacking 10 Item Schematics ----------------- None Robot Schematics ------------------ None Fabricated ------------ Nothing Alien Tech Used ----------------- None Achievements -------------- None Challenges ------------ None Game ------ Seed MissileBlastCore Manual? 0 Play Time 00:50:35 Cumulative 7.6 hours Start 2024.03.14 @ 10:00:57 End 2024.03.14 @ 21:47:19 Sessions 3 Manual Loads 0 Difficulty Adventurer Special Mode None Game No. 10 Rogue 0 Adventurer 10 Explorer 0 Win Type - Total 0 Types 0/0/0/0/0/0/0/0/0 Lore% 10 Gallery% 12 Achievement% 11 Wizard Run 0 Options --------- Layout 1 ASCII 0 Keyboard 0 Movement Mouse Keybinds 0 Fullscreen 2 Font 24/Smallcaps Map View 50x35 Zoom Use 0% Tactical HUD 1 Map Filters NONE Filters NONE Steam 1 RUN: a415c71d-9d3d-4cd7-94f5-96f2f2b4fd79